lending/lending_fUSD_20250429
["ID","MTS","AMOUNT","RATE_DAILY","PERIOD"]
[359342923,1745946633896,-257.56,0.00027397,2]
[359342924,1745946633906,-547.00197037,0.00027397,2]
[359342925,1745946633915,-520.95,0.00027397,2]
[359342926,1745946633925,-607.58,0.00027397,2]
[359342927,1745946633936,-470.0,0.00027397,2]
[359342928,1745946633945,-505.73454066,0.00027397,2]
[359342929,1745946633955,-470.0,0.00027397,2]
[359342930,1745946633966,-500.0,0.00027397,2]
[359342931,1745946633976,-1617.0,0.00027397,2]
[359342932,1745946633987,-500.0,0.00027397,2]
[359342933,1745946633997,-500.0,0.00027397,2]
[359342934,1745946634007,-470.0,0.00027397,2]
[359342935,1745946634018,-551.22,0.00027397,2]
[359342936,1745946634028,-470.0,0.00027397,2]
[359342937,1745946634038,-470.0,0.00027397,2]
[359342938,1745946634048,-403.6957499,0.00027397,2]
[359342939,1745946634058,-500.0,0.00027397,2]
[359342940,1745946634068,-470.0,0.00027397,2]
[359342941,1745946634078,-500.0,0.00027397,2]
[359342942,1745946634088,-508.06525586,0.00027397,2]
[359342943,1745946634098,-470.0,0.00027397,2]
[359342944,1745946634107,-500.0,0.00027397,2]
[359342945,1745946634117,-1242.89,0.00027397,2]
[359342946,1745946634127,-470.0,0.00027397,2]
[359342947,1745946634137,-814.24,0.00027397,2]
[359342948,1745946634147,-470.0,0.00027397,2]
[359342949,1745946634157,-500.0,0.00027397,2]
[359342950,1745946634167,-819.69,0.00027397,2]
[359342951,1745946634178,-555.70235732,0.00027397,2]
[359342952,1745946634193,-500.0,0.00027397,2]
[359342953,1745946634203,-935.31,0.00027397,2]
[359342954,1745946634212,-1068.71,0.00027397,2]
[359342955,1745946634223,-470.0,0.00027397,2]
[359342956,1745946634234,-470.0,0.00027397,2]
[359342957,1745946634244,-500.0,0.00027397,2]
[359342958,1745946634254,-470.0,0.00027397,2]
[359342959,1745946634265,-253.44893431,0.00027397,2]
[359342960,1745946634276,-470.0,0.00027397,2]
[359342961,1745946634287,-470.0,0.00027397,2]
[359342962,1745946634296,-470.0,0.00027397,2]
[359342963,1745946634307,-470.0,0.00027397,2]
[359342964,1745946634316,-500.0,0.00027397,2]
[359342965,1745946634325,-250.0,0.00027397,2]
[359342966,1745946634335,-470.0,0.00027397,2]
[359342967,1745946634344,-500.0,0.00027397,2]
[359342968,1745946634354,-470.0,0.00027397,2]
[359342969,1745946634364,-500.0,0.00027397,2]
[359342970,1745946634373,-470.0,0.00027397,2]
[359342971,1745946634383,-470.0,0.00027397,2]
[359342972,1745946634392,-158.539262,0.00027397,2]
[359342973,1745946634403,-470.0,0.00027397,2]
[359342974,1745946634412,-572.39,0.00027397,2]
[359342975,1745946634422,-515.86442369,0.00027397,2]
[359342976,1745946634432,-470.0,0.00027397,2]
[359342977,1745946634443,-517.34124314,0.00027397,2]
[359342978,1745946634453,-470.0,0.00027397,2]
[359342979,1745946634463,-500.0,0.00027397,2]
[359342980,1745946634473,-500.0,0.00027397,2]
[359342981,1745946634483,-500.0,0.00027397,2]
[359342982,1745946634493,-500.0,0.00027397,2]
[359342983,1745946634502,-470.0,0.00027397,2]
[359342984,1745946634512,-500.0,0.00027397,2]
[359342985,1745946634522,-470.0,0.00027397,2]
[359342986,1745946634532,-387.74849559,0.00027397,2]
[359342987,1745946634542,-500.0,0.00027397,2]
[359342988,1745946634551,-500.0,0.00027397,2]
[359342989,1745946634561,-470.0,0.00027397,2]
[359342990,1745946634570,-470.0,0.00027397,2]
[359342991,1745946634580,-470.0,0.00027397,2]
[359342992,1745946634590,-470.0,0.00027397,2]
[359342993,1745946634599,-513.50579785,0.00027397,2]
[359342994,1745946634608,-470.0,0.00027397,2]
[359342995,1745946634618,-500.0,0.00027397,2]
[359342996,1745946634628,-470.0,0.00027397,2]
[359342997,1745946634638,-500.0,0.00027397,2]
[359342998,1745946634647,-583.43,0.00027397,2]
[359342999,1745946634655,-556.26,0.00027397,2]
[359343000,1745946634665,-611.32,0.00027397,2]
[359343001,1745946634674,-470.0,0.00027397,2]
[359343002,1745946634683,-500.0,0.00027397,2]
[359343003,1745946634693,-470.0,0.00027397,2]
[359343004,1745946634702,-539.4,0.00027397,2]
[359343005,1745946634711,-470.0,0.00027397,2]
[359343006,1745946634722,-470.0,0.00027397,2]
[359343007,1745946634731,-470.0,0.00027397,2]
[359343008,1745946634741,-817.61,0.00027397,2]
[359343009,1745946634750,-470.0,0.00027397,2]
[359343010,1745946634760,-500.0,0.00027397,2]
[359343011,1745946634769,-500.0,0.00027397,2]
[359343012,1745946634778,-491.12,0.00027397,2]
[359343013,1745946634788,-500.0,0.00027397,2]
[359343014,1745946634797,-1263.12,0.00027397,2]
[359343015,1745946634806,-470.0,0.00027397,2]
[359343016,1745946634816,-510.67922177,0.00027397,2]
[359343017,1745946634825,-470.0,0.00027397,2]
[359343018,1745946634834,-500.0,0.00027397,2]
[359343019,1745946634844,-625.87,0.00027397,2]
[359343020,1745946634854,-3378.15,0.00027397,2]
[359343021,1745946634864,-470.0,0.00027397,2]
[359343022,1745946634874,-500.0,0.00027397,2]
[359343023,1745946634883,-469.30159585,0.00027397,2]
[359343024,1745946634893,-470.0,0.00027397,2]
[359343025,1745946634903,-1038.63,0.00027397,2]
[359343026,1745946634913,-500.0,0.00027397,2]
[359343027,1745946634922,-470.0,0.00027397,2]
[359343028,1745946634932,-470.0,0.00027397,2]
[359343029,1745946634942,-706.75,0.00027397,2]
[359343030,1745946634951,-470.0,0.00027397,2]
[359343031,1745946634960,-2351.76,0.00027397,2]
[359343032,1745946634969,-512.13106415,0.00027397,2]
[359343033,1745946634979,-470.0,0.00027397,2]
[359343034,1745946634988,-500.0,0.00027397,2]
[359343035,1745946634998,-470.0,0.00027397,2]
[359343036,1745946635008,-1612.7,0.00027397,2]
[359343037,1745946635018,-470.0,0.00027397,2]
[359343038,1745946635027,-470.0,0.00027397,2]
[359343039,1745946635037,-514.02401722,0.00027397,2]
[359343040,1745946635046,-470.0,0.00027397,2]
[359343041,1745946635055,-470.0,0.00027397,2]
[359343042,1745946635065,-504.94,0.00027397,2]
[359343043,1745946635074,-500.0,0.00027397,2]
[359343044,1745946635083,-500.0,0.00027397,2]
[359343045,1745946635092,-470.0,0.00027397,2]
[359343046,1745946635102,-470.0,0.00027397,2]
[359343047,1745946635112,-502.57350896,0.00027397,2]
[359343048,1745946635121,-470.0,0.00027397,2]
[359343049,1745946635130,-635.78,0.00027397,2]
[359343050,1745946635139,-470.0,0.00027397,2]
[359343051,1745946635148,-3853.5,0.00027397,2]
[359343052,1745946635158,-470.0,0.00027397,2]
[359343053,1745946635167,-555.24893886,0.00027397,2]
[359343054,1745946635177,-470.0,0.00027397,2]
[359343055,1745946635191,-500.0,0.00027397,2]
[359343056,1745946635200,-167.720217,0.00027397,2]
[359343057,1745946635211,-470.0,0.00027397,2]
[359343058,1745946635222,-1002.8,0.00027397,2]
[359343059,1745946635232,-636.57,0.00027397,2]
[359343060,1745946635241,-470.0,0.00027397,2]
[359343061,1745946635251,-500.0,0.00027397,2]
[359343062,1745946635263,-802.69,0.00027397,2]
[359343063,1745946635273,-470.0,0.00027397,2]
[359343064,1745946635282,-512.7634877,0.00027397,2]
[359343065,1745946635291,-470.0,0.00027397,2]
[359343066,1745946635301,-470.0,0.00027397,2]
[359343067,1745946635311,-470.0,0.00027397,2]
[359343068,1745946635321,-686.43,0.00027397,2]
[359343069,1745946635332,-235.82703247,0.00027397,2]
[359343070,1745946635344,-500.0,0.00027397,2]
[359343071,1745946635355,-470.0,0.00027397,2]
[359343072,1745946635364,-470.0,0.00027397,2]
[359343073,1745946635374,-470.0,0.00027397,2]
[359343074,1745946635384,-470.0,0.00027397,2]
[359343075,1745946635393,-470.0,0.00027397,2]
[359343076,1745946635403,-470.0,0.00027397,2]
[359343077,1745946635412,-513.98376421,0.00027397,2]
[359343078,1745946635422,-500.0,0.00027397,2]
[359343079,1745946635432,-470.0,0.00027397,2]
[359343080,1745946635443,-1074.0,0.00027397,2]
[359343081,1745946635453,-523.28114712,0.00027397,2]
[359343082,1745946635463,-500.0,0.00027397,2]
[359343083,1745946635474,-496.91,0.00027397,2]
[359343084,1745946635484,-500.0,0.00027397,2]
[359343085,1745946635494,-470.0,0.00027397,2]
[359343086,1745946635503,-470.0,0.00027397,2]
[359343087,1745946635514,-500.0,0.00027397,2]
[359343088,1745946635523,-470.0,0.00027397,2]
[359343089,1745946635534,-404.20985566,0.00027397,2]
[359343090,1745946635544,-633.55,0.00027397,2]
[359343091,1745946635554,-157.61980786,0.00027397,2]
[359343092,1745946635564,-664.04,0.00027397,2]
[359343093,1745946635574,-828.41,0.00027397,2]
[359343094,1745946635583,-500.0,0.00027397,2]
[359343095,1745946635593,-470.0,0.00027397,2]
[359343096,1745946635603,-470.0,0.00027397,2]
[359343097,1745946635612,-470.0,0.00027397,2]
[359343098,1745946635622,-470.0,0.00027397,2]
[359343099,1745946635632,-505.91183549,0.00027397,2]
[359343100,1745946635642,-470.0,0.00027397,2]
[359343101,1745946635652,-646.73583252,0.00027397,2]
[359343102,1745946635662,-470.0,0.00027397,2]
[359343103,1745946635671,-500.0,0.00027397,2]
[359343104,1745946635681,-470.0,0.00027397,2]
[359343105,1745946635690,-500.0,0.00027397,2]
[359343106,1745946635700,-470.0,0.00027397,2]
[359343107,1745946635710,-480.18,0.00027397,2]
[359343108,1745946635722,-470.0,0.00027397,2]
[359343109,1745946635732,-470.0,0.00027397,2]
[359343110,1745946635741,-470.0,0.00027397,2]
[359343111,1745946635752,-470.0,0.00027397,2]
[359343112,1745946635762,-637.6,0.00027397,2]
[359343113,1745946635772,-470.0,0.00027397,2]
[359343114,1745946635783,-470.0,0.00027397,2]
[359343115,1745946635792,-470.0,0.00027397,2]
[359343116,1745946635803,-470.0,0.00027397,2]
[359343117,1745946635812,-360.328556,0.00027397,2]
[359343118,1745946635824,-515.6436523,0.00027397,2]
[359343119,1745946635835,-500.0,0.00027397,2]
[359343120,1745946635845,-470.0,0.00027397,2]
[359343121,1745946635855,-470.0,0.00027397,2]
[359343122,1745946635867,-542.3936014,0.00027397,2]
[359343123,1745946635878,-500.0,0.00027397,2]
[359343124,1745946635888,-521.03819834,0.00027397,2]
[359343125,1745946635898,-500.0,0.00027397,2]
[359343126,1745946635908,-470.0,0.00027397,2]
[359343127,1745946635918,-500.0,0.00027397,2]
[359343128,1745946635929,-470.0,0.00027397,2]
[359343129,1745946635938,-470.0,0.00027397,2]
[359343130,1745946635949,-470.0,0.00027397,2]
[359343131,1745946635960,-470.0,0.00027397,2]
[359343132,1745946635970,-470.0,0.00027397,2]
[359343133,1745946635980,-613.1,0.00027397,2]
[359343134,1745946635990,-470.0,0.00027397,2]
[359343135,1745946636000,-523.08660264,0.00027397,2]
[359343136,1745946636011,-513.15636531,0.00027397,2]
[359343137,1745946636020,-470.0,0.00027397,2]
[359343138,1745946636032,-822.31,0.00027397,2]
[359343139,1745946636042,-470.0,0.00027397,2]
[359343140,1745946636052,-516.03865062,0.00027397,2]
[359343141,1745946636062,-498.54864244,0.00027397,2]
[359343142,1745946636072,-470.0,0.00027397,2]
[359343143,1745946636081,-500.0,0.00027397,2]
[359343144,1745946636091,-470.0,0.00027397,2]
[359343145,1745946636100,-470.0,0.00027397,2]
[359343146,1745946636109,-509.60914596,0.00027397,2]
[359343147,1745946636119,-470.0,0.00027397,2]
[359343148,1745946636128,-740.36,0.00027397,2]
[359343149,1745946636138,-531.2644988,0.00027397,2]
[359343150,1745946636147,-470.0,0.00027397,2]
[359343151,1745946636156,-500.0,0.00027397,2]
[359343152,1745946636166,-470.0,0.00027397,2]
[359343153,1745946636175,-470.0,0.00027397,2]
[359343154,1745946636189,-500.0,0.00027397,2]
[359343155,1745946636378,-490.15,0.00027397,2]
[359343156,1745946636388,-178.48,0.00027397,2]
[359343157,1745946636397,-470.0,0.00027397,2]
[359343158,1745946636406,-470.0,0.00027397,2]
[359343159,1745946636416,-470.0,0.00027397,2]
[359343160,1745946636425,-470.0,0.00027397,2]
[359343161,1745946636435,-1158.93,0.00027397,2]
[359343162,1745946636444,-470.0,0.00027397,2]
[359343163,1745946636453,-500.0,0.00027397,2]
[359343164,1745946636463,-500.0,0.00027397,2]
[359343165,1745946636472,-470.0,0.00027397,2]
[359343166,1745946636482,-600.27,0.00027397,2]
[359343167,1745946636491,-470.0,0.00027397,2]
[359343168,1745946636500,-480.75,0.00027397,2]
[359343169,1745946636509,-519.94669392,0.00027397,2]
[359343170,1745946636519,-500.0,0.00027397,2]
[359343171,1745946636528,-828.51,0.00027397,2]
[359343172,1745946636537,-522.03160971,0.00027397,2]
[359343173,1745946636546,-470.0,0.00027397,2]
[359343174,1745946636555,-470.0,0.00027397,2]
[359343175,1745946636565,-500.0,0.00027397,2]
[359343176,1745946636574,-470.0,0.00027397,2]
[359343177,1745946636583,-510.35166996,0.00027397,2]
[359343178,1745946636592,-507.10899895,0.00027397,2]
[359343179,1745946636601,-569.9,0.00027397,2]
[359343180,1745946636611,-470.0,0.00027397,2]
[359343181,1745946636620,-470.0,0.00027397,2]
[359343182,1745946636630,-510.15295254,0.00027397,2]
[359343183,1745946636639,-1775.54,0.00027397,2]
[359343184,1745946636649,-500.0,0.00027397,2]
[359343185,1745946636658,-500.0,0.00027397,2]
[359343186,1745946636669,-519.98539353,0.00027397,2]
[359343187,1745946636680,-559.21674655,0.00027397,2]
[359343188,1745946636690,-989.38,0.00027397,2]
[359343189,1745946636701,-500.0,0.00027397,2]
[359343190,1745946636711,-743.53,0.00027397,2]
[359343191,1745946636722,-500.0,0.00027397,2]
[359343192,1745946636731,-500.0,0.00027397,2]
[359343193,1745946636741,-518.17262288,0.00027397,2]
[359343194,1745946636750,-470.0,0.00027397,2]
[359343195,1745946636759,-510.26948559,0.00027397,2]
[359343196,1745946636769,-506.91293231,0.00027397,2]
[359343197,1745946636778,-516.46588542,0.00027397,2]
[359343198,1745946636787,-470.0,0.00027397,2]
[359343199,1745946636796,-502.55360355,0.00027397,2]
[359343200,1745946636805,-1812.93529503,0.00027397,2]
[359343201,1745946636814,-512.94455689,0.00027397,2]
[359343202,1745946636824,-470.0,0.00027397,2]
[359343203,1745946636833,-161.665347,0.00027397,2]
[359343204,1745946636842,-533.85,0.00027397,2]
[359343205,1745946636851,-470.0,0.00027397,2]
[359343206,1745946636861,-470.0,0.00027397,2]
[359343207,1745946636870,-470.0,0.00027397,2]
[359343208,1745946636879,-500.0,0.00027397,2]
[359343209,1745946636888,-522.54103045,0.00027397,2]
[359343210,1745946636898,-470.0,0.00027397,2]
[359343211,1745946636907,-470.0,0.00027397,2]
[359343212,1745946636916,-530.0,0.00027397,2]
[359343213,1745946636925,-500.0,0.00027397,2]
[359343214,1745946636935,-512.19,0.00027397,2]
[359343215,1745946636944,-876.37,0.00027397,2]
[359343216,1745946636953,-470.0,0.00027397,2]
[359343217,1745946636962,-825.85,0.00027397,2]
[359343218,1745946636972,-504.30698967,0.00027397,2]
[359343219,1745946636981,-470.0,0.00027397,2]
[359343220,1745946636991,-888.63,0.00027397,2]
[359343221,1745946637000,-470.0,0.00027397,2]
[359343222,1745946637010,-368.38864603,0.00027397,2]
[359343223,1745946637019,-720.21,0.00027397,2]
[359343224,1745946637028,-470.0,0.00027397,2]
[359343225,1745946637038,-470.0,0.00027397,2]
[359343226,1745946637047,-592.42,0.00027397,2]
[359343227,1745946637056,-470.0,0.00027397,2]
[359343228,1745946637065,-470.0,0.00027397,2]
[359343229,1745946637075,-500.0,0.00027397,2]
[359343230,1745946637084,-470.0,0.00027397,2]
[359343231,1745946637094,-500.0,0.00027397,2]
[359343232,1745946637103,-470.0,0.00027397,2]
[359343233,1745946637112,-470.0,0.00027397,2]
[359343234,1745946637121,-1663.01,0.00027397,2]
[359343235,1745946637132,-715.99,0.00027397,2]
[359343236,1745946637142,-500.0,0.00027397,2]
[359343237,1745946637151,-971.57,0.00027397,2]
[359343238,1745946637160,-500.0,0.00027397,2]
[359343239,1745946637169,-470.0,0.00027397,2]
[359343240,1745946637179,-470.0,0.00027397,2]
[359343241,1745946637193,-470.0,0.00027397,2]
[359343242,1745946637202,-513.69055816,0.00027397,2]
[359343243,1745946637211,-470.0,0.00027397,2]
[359343244,1745946637221,-642.99,0.00027397,2]
[359343245,1745946637232,-470.0,0.00027397,2]
[359343246,1745946637241,-202.28099323,0.00027397,2]
[359343247,1745946637250,-470.0,0.00027397,2]
[359343248,1745946637260,-568.01662868,0.00027397,2]
[359343249,1745946637269,-500.0,0.00027397,2]
[359343250,1745946637280,-470.0,0.00027397,2]
[359343251,1745946637289,-470.0,0.00027397,2]
[359343252,1745946637299,-470.0,0.00027397,2]
[359343253,1745946637309,-470.0,0.00027397,2]
[359343254,1745946637318,-470.0,0.00027397,2]
[359343255,1745946637327,-570.97,0.00027397,2]
[359343257,1745946637337,-586.33260036,0.00027397,2]
[359343258,1745946637349,-695.71,0.00027397,2]
[359343259,1745946637359,-500.478104,0.00027397,2]
[359343260,1745946637368,-470.0,0.00027397,2]
[359343261,1745946637377,-470.0,0.00027397,2]
[359343262,1745946637386,-470.0,0.00027397,2]
[359343263,1745946637395,-700.74,0.00027397,2]
[359343264,1745946637404,-470.0,0.00027397,2]
[359343265,1745946637413,-470.0,0.00027397,2]
[359343266,1745946637422,-470.0,0.00027397,2]
[359343267,1745946637432,-783.85,0.00027397,2]
[359343268,1745946637441,-1000.0,0.00027397,2]
[359343269,1745946637451,-700.22,0.00027397,2]
[359343270,1745946637460,-470.0,0.00027397,2]
[359343271,1745946637470,-470.0,0.00027397,2]
[359343272,1745946637479,-1807.3,0.00027397,2]
[359343273,1745946637489,-470.0,0.00027397,2]
[359343274,1745946637498,-824.71,0.00027397,2]
[359343275,1745946637507,-690.41,0.00027397,2]
[359343276,1745946637516,-470.0,0.00027397,2]
[359343277,1745946637525,-470.0,0.00027397,2]
[359343278,1745946637535,-470.0,0.00027397,2]
[359343279,1745946637544,-470.0,0.00027397,2]
[359343280,1745946637553,-8083.38,0.00027397,2]
[359343281,1745946637562,-470.0,0.00027397,2]
[359343282,1745946637572,-470.0,0.00027397,2]
[359343283,1745946637582,-605.11,0.00027397,2]
[359343284,1745946637591,-151.0,0.00027397,7]
[359343285,1745946637601,-470.0,0.00027397,2]
[359343286,1745946637610,-176.14383197,0.00027397,2]
[359343287,1745946637620,-470.0,0.00027397,2]
[359343288,1745946637630,-600.82,0.00027397,2]
[359343289,1745946637639,-738.0,0.00027397,2]
[359343290,1745946637648,-500.0,0.00027397,2]
[359343291,1745946637658,-164.23311921,0.00027397,2]
[359343292,1745946637667,-470.0,0.00027397,2]
[359343293,1745946637676,-1573.39,0.00027397,2]
[359343294,1745946637685,-470.0,0.00027397,2]
[359343295,1745946637694,-15556.38,0.00027397,2]
[359343296,1745946637704,-470.0,0.00027397,2]
[359343297,1745946637713,-470.0,0.00027397,2]
[359343298,1745946637723,-500.0,0.00027397,2]
[359343299,1745946637732,-470.0,0.00027397,2]
[359343300,1745946637741,-583.0787169,0.00027397,2]
[359343301,1745946637751,-873.21,0.00027397,2]
[359343302,1745946637760,-500.0,0.00027397,2]
[359343303,1745946637770,-653.85,0.00027397,2]
[359343304,1745946637780,-470.0,0.00027397,2]
[359343305,1745946637790,-500.0,0.00027397,2]
[359343306,1745946637799,-500.0,0.00027397,2]
[359343307,1745946637809,-470.0,0.00027397,2]
[359343308,1745946637818,-470.0,0.00027397,2]
[359343309,1745946637827,-470.0,0.00027397,2]
[359343310,1745946637838,-531.79261782,0.00027397,2]
[359343311,1745946637848,-470.0,0.00027397,2]
[359343312,1745946637858,-882.89,0.00027397,2]
[359343313,1745946637867,-470.0,0.00027397,2]
[359343314,1745946637877,-151.0,0.00027397,7]
[359343315,1745946637886,-719.83,0.00027397,2]
[359343316,1745946637896,-520.0,0.00027397,2]
[359343317,1745946637905,-807.35,0.00027397,2]
[359343318,1745946637915,-470.0,0.00027397,2]
[359343319,1745946637924,-654.75,0.00027397,2]
[359343320,1745946637934,-470.0,0.00027397,2]
[359343321,1745946637943,-151.0,0.00027397,7]
[359343322,1745946637952,-610.55,0.00027397,2]
[359343323,1745946637963,-500.0,0.00027397,2]
[359343324,1745946637972,-505.00724878,0.00027397,2]
[359343325,1745946637981,-470.0,0.00027397,2]
[359343326,1745946637991,-593.23,0.00027397,2]
[359343327,1745946638000,-470.0,0.00027397,2]
[359343328,1745946638009,-470.0,0.00027397,2]
[359343329,1745946638019,-470.0,0.00027397,2]
[359343330,1745946638028,-509.64,0.00027397,2]
[359343331,1745946638038,-470.0,0.00027397,2]
[359343332,1745946638047,-470.0,0.00027397,2]
[359343333,1745946638057,-470.0,0.00027397,2]
[359343334,1745946638066,-978.08,0.00027397,2]
[359343335,1745946638076,-781.68,0.00027397,2]
[359343337,1745946638086,-470.0,0.00027397,2]
[359343339,1745946638095,-470.0,0.00027397,2]
[359343340,1745946638105,-1521.18,0.00027397,2]
[359343342,1745946638114,-609.07,0.00027397,2]
[359343343,1745946638124,-623.29,0.00027397,2]
[359343344,1745946638134,-1076.85,0.00027397,2]
[359343346,1745946638143,-470.0,0.00027397,2]
[359343347,1745946638152,-1033.91,0.00027397,2]
[359343349,1745946638161,-1113.52,0.00027397,2]
[359343351,1745946638171,-470.0,0.00027397,2]
[359343352,1745946638180,-470.0,0.00027397,2]
[359343353,1745946638193,-1107.01,0.00027397,2]
[359343354,1745946638202,-470.0,0.00027397,2]
[359343355,1745946638211,-470.0,0.00027397,2]
[359343356,1745946638222,-470.0,0.00027397,2]
[359343357,1745946638231,-470.0,0.00027397,2]
[359343358,1745946638241,-517.87471849,0.00027397,2]
[359343359,1745946638250,-613.5,0.00027397,2]
[359343360,1745946638260,-4648.92,0.00027397,2]
[359343361,1745946638269,-470.0,0.00027397,2]
[359343362,1745946638278,-470.0,0.00027397,2]
[359343364,1745946638287,-470.0,0.00027397,2]
[359343366,1745946638296,-1015.66,0.00027397,2]
[359343367,1745946638306,-470.0,0.00027397,2]
[359343368,1745946638314,-802.91,0.00027397,2]
[359343369,1745946638323,-833.9,0.00027397,2]
[359343370,1745946638333,-470.0,0.00027397,2]
[359343371,1745946638342,-470.0,0.00027397,2]
[359343372,1745946638351,-502.17,0.00027397,2]
[359343373,1745946638361,-2447.99,0.00027397,2]
[359343374,1745946638370,-470.0,0.00027397,2]
[359343375,1745946638379,-470.0,0.00027397,2]
[359343376,1745946638388,-470.0,0.00027397,2]
[359343377,1745946638398,-2885.7,0.00027397,2]
[359343378,1745946638407,-470.0,0.00027397,2]
[359343379,1745946638416,-470.0,0.00027397,2]
[359343380,1745946638426,-614.61,0.00027397,2]
[359343381,1745946638435,-470.0,0.00027397,2]
[359343382,1745946638452,-500.0,0.00027397,2]
[359343383,1745946638461,-613.23,0.00027397,2]
[359343384,1745946638470,-470.0,0.00027397,2]
[359343385,1745946638480,-2481.7,0.00027397,2]
[359343386,1745946638489,-470.0,0.00027397,2]
[359343387,1745946638498,-470.0,0.00027397,2]
[359343388,1745946638507,-519.21548296,0.00027397,2]
[359343389,1745946638516,-470.0,0.00027397,2]
[359343390,1745946638525,-470.0,0.00027397,2]
[359343391,1745946638535,-470.0,0.00027397,2]
[359343392,1745946638544,-325.91530338,0.00027397,2]
[359343393,1745946638554,-500.0,0.00027397,2]
[359343394,1745946638563,-470.0,0.00027397,2]
[359343395,1745946638573,-1347.18,0.00027397,2]
[359343396,1745946638583,-470.0,0.00027397,2]
[359343397,1745946638592,-470.0,0.00027397,2]
[359343398,1745946638602,-776.92,0.00027397,2]
[359343399,1745946638611,-470.0,0.00027397,2]
[359343400,1745946638621,-470.0,0.00027397,2]
[359343401,1745946638630,-470.0,0.00027397,2]
[359343402,1745946638639,-470.0,0.00027397,2]
[359343403,1745946638649,-470.0,0.00027397,2]
[359343404,1745946638658,-470.0,0.00027397,2]
[359343405,1745946638667,-864.24,0.00027397,2]
[359343406,1745946638677,-470.0,0.00027397,2]
[359343407,1745946638686,-3036.85,0.00027397,2]
[359343408,1745946638696,-470.0,0.00027397,2]
[359343409,1745946638705,-151.0,0.00027397,7]
[359343410,1745946638714,-470.0,0.00027397,2]
[359343411,1745946638725,-470.0,0.00027397,2]
[359343412,1745946638734,-470.0,0.00027397,2]
[359343413,1745946638744,-470.0,0.00027397,2]
[359343414,1745946638753,-723.05,0.00027397,2]
[359343415,1745946638762,-1409.09,0.00027397,2]
[359343416,1745946638771,-470.0,0.00027397,2]
[359343417,1745946638780,-604.55829584,0.00027397,2]
[359343418,1745946638789,-470.0,0.00027397,2]
[359343419,1745946638798,-470.0,0.00027397,2]
[359343420,1745946638807,-470.0,0.00027397,2]
[359343421,1745946638817,-656.63,0.00027397,2]
[359343422,1745946638826,-651.63,0.00027397,2]
[359343423,1745946638836,-594.39,0.00027397,2]
[359343424,1745946638845,-2157.65,0.00027397,2]
[359343425,1745946638854,-1000.0,0.00027397,2]
[359343426,1745946638864,-470.0,0.00027397,2]
[359343427,1745946638873,-470.0,0.00027397,2]
[359343428,1745946638883,-642.31,0.00027397,2]
[359343429,1745946638892,-470.0,0.00027397,2]
[359343430,1745946638902,-470.0,0.00027397,2]
[359343431,1745946638912,-1519.41,0.00027397,2]